Cogmind - Beta 14 @@@ ROGUE MODE // 2024.09.07 @ 03:51:06 Player: Beef Result: Destroyed by S-27 Virus with Autogun Performance ------------- Evolutions (6) 3000 Regions Visited (11) 2200 Robots Destroyed (161) 805 Value Destroyed (6886) 6886 Prototype IDs (32) 640 Alien Tech Used (0) 0 Bonus (4292) 4292 TOTAL SCORE: 17823 Bonus ------- High Alert Combat Kills 874 Follower Combat Kills 113 Delivered SUBCON Basin 2000 Registered with UFD 300 Met Warlord at Base 500 MAIN.C Attacked Warlord 500 Warlord Defense Kills 340 Friendly Fire -335 Cogmind --------- Core Integrity 0/1150 Matter 13/300 Energy 99/100 System Corruption 31% Temperature Cool (0) Movement Core (50) Location -4/Factory Parts ------- > --- POWER (1) -------- (None) > --- PROPULSION (5) --- (None) > --- UTILITY (10) ----- (None) > --- WEAPON (3) ------- (None) > --- INVENTORY (5) ---- Micro Fission Core Micro Fission Core Improved Antigrav System Advanced Heat Sink Advanced Datajack Peak State ------------ > --- POWER ------------ Neutrino Core > --- PROPULSION ------- Flexi-carbon Leg Flexi-carbon Leg Armored Leg Armored Leg Advanced VSS Leg > --- UTILITY ---------- Advanced Cooling System Advanced Cooling System Large Storage Unit 0b10 Decoder Chip [Skirmisher] Centrium Light Armor Plating Thermal Defense Suite Hacking Suite Improved Hacking Suite Advanced Hacking Suite Tech Extrapolator > --- WEAPON ----------- Vortex Rail Vortex Rail Kinetic Spear > --- INVENTORY -------- Neutrino Core Advanced Medium Treads Armored Leg Advanced Heat Sink Advanced Heat Sink Heavy Beamcaster Enhanced Gauss Cannon Hypervelocity Mass Driver Heavy Rocket Launcher Heavy Rocket Launcher Advanced Datajack Improved Plasma Cutter RU-N14's Throwing Claymores v3 RU-N14's Throwing Claymores v3 [Rating: 119] Favorites ----------- Power Neutrino Core Engine Makeshift Power Source Power Core Neutrino Core Reactor Light Antimatter Reactor Propulsion Armored Leg Treads Light Treads Leg Armored Leg Wheel Wheel Utility Large Storage Unit Device Improved Terrain Scanner Storage Large Storage Unit Processor Tech Extrapolator Hackware Improved System Shield Protection Layered Medium Armor Plating Weapon Advanced Plasma Cannon Energy Gun Heavy Beamcaster Energy Cannon Advanced Plasma Cannon Ballistic Gun Makeshift Shrapnel Gun Ballistic Cannon Battle Cannon Launcher Heavy Rocket Launcher Special Weapon Mining Laser Piercing Weapon Kinetic Spear Build | -11 -10 -10 -9 -9 -6 -5 -5 -5 -5 -4 -4 ------- Run | Yrd Mat Sub Rec Scr Fac Fac Upp Upp War Pro Fac Slots Evolved 12 | . . . . . 8 2 . . . . 2 Power . | . . . . . . . . . . . . Propulsion 3 | . . . . . 2 . . . . . 1 Utility 8 | . . . . . 6 1 . . . . 1 Weapon 1 | . . . . . . 1 . . . . . Parts Attached 225 | 9 6 19 . 2 79 30 4 7 11 14 44 Power 20 | 1 1 2 . . 9 1 . . 2 1 3 Engine 10 | 1 . 2 . . 7 . . . . . . Core 8 | . 1 . . . 2 1 . . 1 1 2 Reactor 2 | . . . . . . . . . 1 . 1 Propulsion 59 | 3 . 10 . 1 22 4 . 2 2 4 11 Treads 2 | 2 . . . . . . . . . . . Leg 44 | . . 2 . . 19 4 . 2 2 4 11 Wheel 13 | 1 . 8 . 1 3 . . . . . . Hover . | . . . . . . . . . . . . Flight . | . . . . . . . . . . . . Utility 60 | 2 1 . . 1 22 11 1 3 2 4 13 Device 34 | 1 . . . 1 14 8 1 2 . 1 6 Storage 3 | 1 1 . . . 1 . . . . . . Processor 7 | . . . . . 4 1 . . . . 2 Hackware 5 | . . . . . 2 . . . . 3 . Protection 11 | . . . . . 1 2 . 1 2 . 5 Artifact . | . . . . . . . . . . . . Weapon 86 | 3 4 7 . . 26 14 3 2 5 5 17 Energy Gun 38 | 1 . 1 . . 16 5 3 . 3 1 8 Energy Cannon 8 | . . 1 . . . 3 . 1 1 2 . Ballistic Gun 7 | 2 3 2 . . . . . . . . . Ballistic Cannon 5 | . . 2 . . 1 . . . . . 2 Launcher 15 | . . 1 . . 5 3 . 1 . 2 3 Special Weapon 3 | . 1 . . . . . . . 1 . 1 Impact Weapon . | . . . . . . . . . . . . Slashing Weapon . | . . . . . . . . . . . . Piercing Weapon 10 | . . . . . 4 3 . . . . 3 Special Melee Weapon . | . . . . . . . . . . . . Unidentified Prototypes 13 | . . . . . 8 . 1 . 3 . 1 Parts Lost 69 | . . 4 . . 13 2 . 4 3 8 35 Power 6 | . . 1 . . 3 . . . 1 . 1 Propulsion 22 | . . 2 . . 4 . . 2 . 2 12 Utility 26 | . . . . . 5 1 . 2 2 3 13 Weapon 15 | . . 1 . . 1 1 . . . 3 9 Highest Loss Streak 6 | . . 4 . . 3 1 . 2 3 4 6 To Critical Strikes 2 | . . . . . . . . 1 . . 1 Average Slot Usage (%) 96 | . 100 100 100 100 92 99 100 99 99 97 82 Engine 5 | . 7 11 14 14 4 2 . . . . . Core 2 | . 6 2 . . 1 2 5 5 4 5 3 Treads 1 | . 28 4 . . . . . . . . . Leg 14 | . . 7 . . 20 23 23 23 23 22 22 Wheel 8 | . . 16 28 28 4 . . . . . . Device 18 | . 14 14 14 14 22 22 23 22 23 18 9 Storage 8 | . 14 14 14 14 6 5 5 5 5 5 4 Processor 8 | . . . . . 11 17 17 17 17 14 5 Hackware 2 | . . . . . 5 . . . . 4 14 Protection 2 | . . . . . . 4 5 5 4 5 6 Energy Gun 8 | . . 1 14 14 11 9 5 5 8 7 7 Energy Cannon 3 | . . 9 . . . 2 11 10 7 7 . Ballistic Gun 5 | . 27 7 14 14 . . . . . . . Ballistic Cannon 1 | . . 9 . . . . . . . . . Peak Build Rating 119 | 9 12 37 36 26 91 106 95 99 107 107 119 Average Rating 63 | 5 10 16 35 21 72 101 92 98 99 102 94 On Entrance 56 | . 9 12 36 18 26 91 95 92 98 107 90 Naked Turns 61 | . . . . . . . . . . . 61 Heaviest Build 74 | 14 30 37 31 31 56 73 72 74 74 69 65 Greatest Support 94 | 20 40 40 26 26 82 73 64 64 66 70 94 Greatest Overweight (x) 2 | . 1 1 1 1 2 1 1 1 1 1 1 Average Overweight (x) . | . . . 1 1 . . . 1 . . . Largest Inventory Capacity 15 | 8 15 15 15 15 15 15 15 15 15 15 15 Average Capacity 14 | 6 13 15 15 15 15 15 15 15 15 15 14 Most Carried 15 | 6 12 15 15 15 15 15 15 15 15 15 15 Average Carried 13 | 3 9 13 14 10 14 14 15 14 14 14 12 Final Capacity 15 | 8 15 15 15 15 15 15 15 15 15 15 5 Final Carried 15 | 5 12 15 1 15 15 15 15 14 15 14 5 Class Distribution -------------------- 26% | Skirmisher 21% | Commander-Mutant 19% | Mutant 6% | Scavenger-Scrapper 5% | Hacker-Mutant 3% | Scavenger-Assassin Dominant Class ---------------- Mutant | -10/Materials Mutant | -10/Subcaves Commander-Mutant | -9/Recycling Commander-Mutant | -9/Scraptown Scavenger-Scrapper | -6/Factory Scavenger-Assassin | -5/Factory Skirmisher | -5/Upper Caves Skirmisher | -5/Upper Caves Skirmisher | -5/Warlord Skirmisher | -4/Proximity Caves Hacker-Mutant | -4/Factory Resources | -11 -10 -10 -9 -9 -6 -5 -5 -5 -5 -4 -4 ----------- Run | Yrd Mat Sub Rec Scr Fac Fac Upp Upp War Pro Fac Matter Collected 3653 | 123 385 376 122 128 1236 442 40 97 120 220 364 Remotely . | . . . . . . . . . . . . Salvage Created 6221 | 24 603 158 167 . 2050 1136 266 686 124 348 659 Parts 277 | 3 34 21 7 . 91 41 7 15 2 9 47 Haulers Intercepted 3 | . . . . . 2 . . . . . 1 Recyclers Shooed 6 | . 3 . . . 2 . . . . . 1 Parts Field Recycled . | . . . . . . . . . . . . Retrieved Matter . | . . . . . . . . . . . . Parts Self-Destructed 35 | . . 13 . . . . 7 8 . 7 . Prevented 8 | . . . . . . . 2 6 . . . Kills | -11 -10 -10 -9 -9 -6 -5 -5 -5 -5 -4 -4 ------- Run | Yrd Mat Sub Rec Scr Fac Fac Upp Upp War Pro Fac Combat Hostiles Destroyed 133 | . 11 8 3 . 35 22 4 17 3 8 22 Melee 2 | . . . . . 2 . . . . . . Guns 70 | . 11 2 3 . 27 13 2 2 2 1 7 Cannons 21 | . . 2 . . . 3 2 9 1 2 2 AOE 35 | . . 4 . . 6 4 . 5 . 3 13 Classes Destroyed 20 | 1 4 2 1 . 8 1 . . 1 1 1 Worker 7 | . . . . . 4 1 . . . . 2 Builder 5 | . . . . . 3 . . . . . 2 Tunneler 4 | 1 . . 1 . . 1 . . . . 1 Hauler 3 | . . . . . 2 . . . . . 1 Recycler 3 | . 3 . . . . . . . . . . Mechanic 1 | . . . . . . . . . . . 1 Turret 2 | . . 2 . . . . . . . . . Watcher 2 | . 1 . . . . 1 . . . . . Swarmer 31 | . 6 4 . . 1 3 1 7 . 4 5 Grunt 63 | . 5 . 1 . 21 12 2 9 1 2 10 Brawler 2 | . . . . . 1 . . . . . 1 Duelist 1 | . . . . . 1 . . . . . . Protector 1 | . . . . . . 1 . . . . . Sentry 11 | . . . 2 . 3 2 1 1 . . 2 Specialist 2 | . . . . . 2 . . . . . . Hunter 1 | . . . . . 1 . . . . . . Programmer 14 | . . . . . 5 4 . . . 1 4 Behemoth 1 | . . . . . . . . . . 1 . Executioner 1 | . . . . . . . . . 1 . . Subdweller 4 | . . 4 . . . . . . . . . Thug 1 | . . . . . . . . . 1 . . Savage 1 | . . . . . . . 1 . . . . Best Kill Streak 8 | 1 4 6 3 . 6 5 1 5 1 4 8 Combat Bots Only 7 | . 3 4 2 . 4 5 1 5 1 4 7 Max Kills in Single Turn 3 | 1 1 2 2 . 3 2 1 3 1 3 3 Gunslinging 1 | . . . . . . 1 . . . . . Exploded 3 | . . 2 . . 2 2 . 3 . 2 3 Melee 1 | . . . . . 1 . . . . . . Uniques/NPCs Destroyed . | . . . . . . . . . . . . Combat | -11 -10 -10 -9 -9 -6 -5 -5 -5 -5 -4 -4 -------- Run | Yrd Mat Sub Rec Scr Fac Fac Upp Upp War Pro Fac Hostile Shots Fired 1197 | . 44 71 10 . 300 107 26 79 74 68 418 Missed 423 | . 14 21 3 . 106 36 10 33 37 21 142 Damage Taken 14583 | . 286 679 101 . 3034 1637 351 934 718 1442 5401 Core 1941 | . 53 86 27 . 272 116 25 95 49 58 1160 Absorbed by Shields 189 | . . . 6 . 183 . . . . . . Regen/Repaired (Parts) 1319 | . . . . . 212 256 . . 293 . 558 Core Remaining (%) 66 | 100 . . . 33 68 . . . . 65 . Volleys Fired 420 | 8 46 39 6 . 118 52 21 41 8 22 59 Largest 3 | 2 2 2 2 . 2 3 3 3 3 3 3 Hottest 277 | 60 100 119 84 . 220 266 277 277 277 277 225 Shots Fired 902 | 16 88 52 12 . 232 135 64 117 19 62 105 Gun 623 | 16 84 34 12 . 223 87 22 38 14 24 69 Cannon 226 | . . 13 . . . 38 42 76 5 34 18 Launcher 44 | . . 5 . . 9 10 . 3 . 4 13 Special 9 | . 4 . . . . . . . . . 5 Kinetic 175 | 14 84 47 6 . 6 . . . . . 18 Thermal 638 | . 4 5 . . 207 125 64 114 19 58 42 Explosive 44 | . . . . . 9 10 . 3 . 4 18 Electromagnetic 18 | 2 . . 6 . 10 . . . . . . Entropic 27 | . . . . . . . . . . . 27 Robot Hit Streak 16 | 5 11 9 3 . 8 16 8 13 11 5 6 Robot Miss Streak 11 | 2 5 2 3 . 10 3 3 2 4 3 11 Penetration Max 1 | . . . . . . . . . . . 1 Secondary Targets 7 | . 3 . . . 1 3 . . . . . Max Gunslinging Chain 1 | . 1 . . . 1 1 . . . . . Shots Hit Robots 460 | 11 50 30 10 . 118 73 23 45 12 30 58 Core Hits 300 | 1 29 15 5 . 83 49 8 24 5 14 67 Critical Kills 5 | . . . . . . 3 . 1 . 1 . Critical Parts Destroyed 9 | . . . . . 2 3 . . . . 4 Critical Strikes 36 | . . 1 . . 10 10 1 2 2 3 7 Burn 18 | . . . . . 8 3 1 1 2 2 1 Meltdown 2 | . . . . . . . . 1 . 1 . Destroy 10 | . . . . . 2 7 . . . . 1 Blast 1 | . . 1 . . . . . . . . . Sever 2 | . . . . . . . . . . . 2 Detonate 3 | . . . . . . . . . . . 3 Melee Attacks 86 | . . . . . 23 19 . . . . 44 Impact . | . . . . . . . . . . . . Slashing . | . . . . . . . . . . . . Piercing 86 | . . . . . 23 19 . . . . 44 Sneak Attacks 3 | . . . . . . 1 . . . . 2 Combat Hostiles . | . . . . . . . . . . . . Follow-up Attacks . | . . . . . . . . . . . . Damage Inflicted 19698 | 122 559 981 202 . 5109 3387 649 1624 296 1225 5544 Guns 8123 | 122 559 245 202 . 3353 1274 279 344 232 199 1314 Cannons 3359 | . . 179 . . . 765 370 976 64 732 273 Explosions 7544 | . . 557 . . 1644 1264 . 304 . 294 3481 Melee 451 | . . . . . 94 84 . . . . 273 Ramming 21 | . . . . . 18 . . . . . 3 Kinetic 2005 | 109 559 870 120 . 74 . . . . . 273 Thermal 9970 | . . 111 . . 3780 2039 649 1320 296 931 844 Explosive 6036 | . . . . . 1071 1264 . 304 . 294 3103 Electromagnetic 167 | 13 . . 82 . 72 . . . . . . Impact . | . . . . . . . . . . . . Slashing 200 | . . . . . . . . . . . 200 Piercing 451 | . . . . . 94 84 . . . . 273 Entropic 848 | . . . . . . . . . . . 848 Highest Corruption 33 | . . . . . 8 1 1 . 1 15 33 Average Corruption 9 | . . . . . 6 1 1 . 1 6 27 Corruption Purged 4 | . . . . . . . 1 . . . 3 Corruption Blocked . | . . . . . . . . . . . . Effects 140 | . . . . . 72 4 2 . 2 12 48 Message Errors 27 | . . . . . 12 . 1 . . 6 8 Matter Fused 32 | . . . . . 20 . . . . 3 9 Heat Flow Errors 16 | . . . . . 10 1 . . . 2 3 Energy Discharges 23 | . . . . . 12 2 . . . 1 8 Parts Rejected 2 | . . . . . 1 . . . . . 1 Data Loss (minor) 16 | . . . . . 11 . . . . . 5 Data Loss (major) 6 | . . . . . 2 1 . . 1 . 2 Misfires 5 | . . . . . 2 . 1 . . . 2 Alerts 1 | . . . . . . . . . . . 1 Misdirections 3 | . . . . . . . . . . . 3 Weapon Failures 9 | . . . . . 2 . . . 1 . 6 Overload Shots 2 | . . . . . . . . . . . 2 Overflow Damage 552 | . . 59 . . 187 40 . 23 . 13 230 Projectiles 59 | . . . . . . 40 . 16 . . 3 Explosions 377 | . . 59 . . 187 . . 7 . 13 111 Melee 116 | . . . . . . . . . . . 116 Knockbacks 4 | . . 1 . . . . . . . . 3 Impact . | . . . . . . . . . . . . Kinetic 4 | . . 1 . . . . . . . . 3 Secondary . | . . . . . . . . . . . . Self-Inflicted Damage 227 | . . . . . 152 30 . 45 . . . Shots 4 | . . . . . 2 1 . 1 . . . Rammed . | . . . . . . . . . . . . Targets Rammed 2 | . . . . . 1 . . . . . 1 Kicked 2 | . . . . . 1 . . . . . 1 Crushed . | . . . . . . . . . . . . Highest Temperature 514 | . 68 5 174 . 514 451 404 421 45 414 128 Average Temperature 127 | . 18 3 77 . 157 151 120 89 20 99 21 Received Heat Transfer 3307 | . 105 90 34 . 915 405 99 288 114 550 707 Effects 21 | . . . . . 18 1 1 . . 1 . Shutdowns 10 | . . . . . 9 1 . . . . . Energy Bleed 3 | . . . . . 3 . . . . . . Interference 4 | . . . . . 3 . 1 . . . . Matter Decay 2 | . . . . . 1 . . . . 1 . Short Circuit 1 | . . . . . 1 . . . . . . Damage (minor) 1 | . . . . . 1 . . . . . . Siege Activations . | . . . . . . . . . . . . Robots Corrupted . | . . . . . . . . . . . . Combat Hostiles . | . . . . . . . . . . . . Parts Fried 1 | . . . . . . . 1 . . . . Impact Corruptions . | . . . . . . . . . . . . Robots Melted 5 | . . . . . . 2 . 1 . 2 . Combat Hostiles 5 | . . . . . . 2 . 1 . 2 . Parts Melted 35 | . . 1 . . 9 7 1 8 2 5 2 Heat Transferred 15837 | . . 148 . . 6162 3048 1068 2129 618 1544 1120 Parts Sabotaged . | . . . . . . . . . . . . Parts Stolen . | . . . . . . . . . . . . Parts Stripped . | . . . . . . . . . . . . Power Chain Reactions . | . . . . . . . . . . . . Alert | -11 -10 -10 -9 -9 -6 -5 -5 -5 -5 -4 -4 ------- Run | Yrd Mat Sub Rec Scr Fac Fac Upp Upp War Pro Fac Peak Influence 925 | 5 261 . 139 . 821 746 . . . . 925 Initial 401 | . 3 . 6 . . 401 . . . . . Average 332 | 1 110 . 28 . 341 582 . . . . 386 Maximum Alert Level 3 | . 1 . . . 3 3 . . . . 3 Low Security (%) 39 | 100 92 . 100 . 27 . . . . . 37 Level 1 16 | . 7 . . . 37 . . . . . 3 Level 2 33 | . . . . . 24 95 . . . . 31 Level 3 9 | . . . . . 10 4 . . . . 26 Level 4 . | . . . . . . . . . . . . Level 5 . | . . . . . . . . . . . . High Security . | . . . . . . . . . . . . Max Security . | . . . . . . . . . . . . Squads Dispatched 33 | . 1 . . . 16 8 . . . . 8 Investigation 7 | . . . . . 5 2 . . . . . Extermination 9 | . . . . . 5 2 . . . . 2 Reinforcement 12 | . 1 . . . 5 . . . . . 6 Assault 5 | . . . . . 1 4 . . . . . Garrison . | . . . . . . . . . . . . Intercept . | . . . . . . . . . . . . Searches Triggered . | . . . . . . . . . . . . Construction Impeded 6 | . . . . . 3 . . . . . 3 Haulers Reinforced 2 | . . . . . . . . . . . 2 Active Scanning Responses . | . . . . . . . . . . . . Cargo Convoy Interrupts 1 | . . . . . 1 . . . . . . Stealth | -11 -10 -10 -9 -9 -6 -5 -5 -5 -5 -4 -4 --------- Run | Yrd Mat Sub Rec Scr Fac Fac Upp Upp War Pro Fac Distress Signals 11 | . 1 . . . 3 1 . . . . 6 Communications Jammed . | . . . . . . . . . . . . Distress Signals . | . . . . . . . . . . . . Times Spotted 211 | . 18 9 3 . 55 26 4 23 14 9 50 Peak Tracking Total 10 | . 4 6 1 . 7 5 3 5 9 3 10 Tactical Retreats 20 | . 2 1 . . 6 1 1 3 . . 6 Traps | -11 -10 -10 -9 -9 -6 -5 -5 -5 -5 -4 -4 ------- Run | Yrd Mat Sub Rec Scr Fac Fac Upp Upp War Pro Fac Traps Triggered 13 | . . 1 . . 7 3 . . . . 2 Indirectly 1 | . . . . . 1 . . . . . . Trap Hack Attempts . | . . . . . . . . . . . . Triggered . | . . . . . . . . . . . . Disarmed . | . . . . . . . . . . . . Reprogrammed . | . . . . . . . . . . . . Reused . | . . . . . . . . . . . . Traps Extracted . | . . . . . . . . . . . . Installed . | . . . . . . . . . . . . Triggered 11 | . . . . . 1 . 2 5 3 . . Machines | -11 -10 -10 -9 -9 -6 -5 -5 -5 -5 -4 -4 ---------- Run | Yrd Mat Sub Rec Scr Fac Fac Upp Upp War Pro Fac Machines Disabled 29 | . . 4 . . 12 1 . . . . 12 Max in Single Turn 5 | . . 2 . . 3 1 . . . . 5 Machines Repaired . | . . . . . . . . . . . . Machines Dismantled . | . . . . . . . . . . . . Machines Sabotaged . | . . . . . . . . . . . . Overloaded Fab Kills . | . . . . . . . . . . . . Hacking | -11 -10 -10 -9 -9 -6 -5 -5 -5 -5 -4 -4 --------- Run | Yrd Mat Sub Rec Scr Fac Fac Upp Upp War Pro Fac Machines Accessed 44 | . 3 3 6 4 10 7 1 . 4 . 6 Terminals 17 | . 3 . 5 . 2 4 . . . . 3 Fabricators 3 | . . . . . 3 . . . . . . Repair Stations 6 | . . . . . 2 2 . . . . 2 Recycling Units 2 | . . . . . 1 . . . . . 1 Scanalyzers 3 | . . . . . 2 1 . . . . . Garrison Access . | . . . . . . . . . . . . Total Hacks 145 | . 12 6 25 16 29 32 1 . 9 . 15 Successful 99 | . 6 6 15 16 14 22 1 . 9 . 10 Failed 46 | . 6 . 10 . 15 10 . . . . 5 Catastrophic 8 | . 1 . 1 . 5 . . . . . 1 Database Lockouts . | . . . . . . . . . . . . Manual 28 | . 10 . 10 . 1 6 . . . . 1 Terminals 55 | . 12 . 20 . 5 11 . . . . 7 Fabricators 9 | . . . . . 9 . . . . . . Repair Stations 16 | . . . . . 3 8 . . . . 5 Recycling Units 5 | . . . . . 2 . . . . . 3 Scanalyzers 23 | . . . . . 10 13 . . . . . Garrison Access . | . . . . . . . . . . . . Terminal Hacks 54 | . 3 6 11 16 . 4 1 . 9 . 4 Record 32 | . . 4 5 15 . . . . 8 . . Part Schematic 3 | . . . 3 . . . . . . . . Prototype ID Bank 2 | . 1 . 1 . . . . . . . . Open Door 3 | . . 1 . . . . 1 . 1 . . Level Access Points 2 | . . . . . . 1 . . . . 1 Branch Access Points 1 | . . . 1 . . . . . . . . Machine Index 1 | . . . . . . . . . . . 1 Terminal Index 3 | . 1 . 1 . . 1 . . . . . Alert Level 2 | . . . . . . 1 . . . . 1 Unreport Threat 1 | . . . . . . . . . . . 1 Zone Layout 2 | . 1 . . . . 1 . . . . . Derelict Proto ID Bank 1 | . . . . 1 . . . . . . . Release Object 1 | . . 1 . . . . . . . . . Fabricator Hacks 8 | . . . . . 8 . . . . . . Network Status 3 | . . . . . 3 . . . . . . Load Schematic 2 | . . . . . 2 . . . . . . Build 3 | . . . . . 3 . . . . . . Repair Station Hacks 11 | . . . . . 2 5 . . . . 4 Scan Component 7 | . . . . . 2 3 . . . . 2 Repair 4 | . . . . . . 2 . . . . 2 Recycling Unit Hacks 2 | . . . . . . . . . . . 2 Retrieve Matter 2 | . . . . . . . . . . . 2 Scanalyzer 14 | . . . . . 3 11 . . . . . Insert Component 8 | . . . . . 3 5 . . . . . Analyze 6 | . . . . . . 6 . . . . . Garrison Access Hacks . | . . . . . . . . . . . . Unauthorized Hacks 10 | . 3 . 4 . 1 2 . . . . . Terminals 10 | . 3 . 4 . 1 2 . . . . . Botnet 10 | . 3 . 4 . 1 2 . . . . . Fabricators . | . . . . . . . . . . . . Repair Stations . | . . . . . . . . . . . . Recycling Units . | . . . . . . . . . . . . Scanalyzers . | . . . . . . . . . . . . Garrison Access . | . . . . . . . . . . . . Data Cores Recovered . | . . . . . . . . . . . . Used . | . . . . . . . . . . . . Hacking Detections 27 | . 3 . 4 . 9 7 . . . . 4 Full Trace Events 7 | . . . 1 . 4 2 . . . . . Feedback Events . | . . . . . . . . . . . . Feedback Blocked . | . . . . . . . . . . . . Robot Schematics Acquired . | . . . . . . . . . . . . Robots Built . | . . . . . . . . . . . . Authchips . | . . . . . . . . . . . . Time . | . . . . . . . . . . . . Total Robot Build Rating . | . . . . . . . . . . . . Part Schematics Acquired 36 | . . . 3 . 13 7 1 4 6 1 1 Parts Built 5 | . . . . . 5 . . . . . . Authchips . | . . . . . . . . . . . . Time 244 | . . . . . 244 . . . . . . Total Part Build Rating 21 | . . . . . 21 . . . . . . Parts Repaired 3 | . . . . . . 1 . . . . 2 Time 291 | . . . . . . 158 . . . . 133 Parts Recycled . | . . . . . . . . . . . . Recycled Matter . | . . . . . . . . . . . . Retrieved Matter . | . . . . . . . . . . . . Retrieved Components . | . . . . . . . . . . . . Parts Scanalyzed 4 | . . . . . 1 3 . . . . . Part Schematics Acquired 3 | . . . . . . 3 . . . . . Parts Damaged 2 | . . . . . 1 1 . . . . . Bothacking | -11 -10 -10 -9 -9 -6 -5 -5 -5 -5 -4 -4 ------------ Run | Yrd Mat Sub Rec Scr Fac Fac Upp Upp War Pro Fac Used RIF Installer . | . . . . . . . . . . . . Robots Hacked . | . . . . . . . . . . . . Non-combat . | . . . . . . . . . . . . Combat . | . . . . . . . . . . . . Robot Hacks Applied . | . . . . . . . . . . . . Relay Couplers Released . | . . . . . . . . . . . . Fabnet Peak Effective % . | . . . . . . . . . . . . Robots Rewired 11 | . . . 11 . . . . . . . . Allies Hacked . | . . . . . . . . . . . . Hacks Repelled . | . . . . . . . . . . . . Allies | -11 -10 -10 -9 -9 -6 -5 -5 -5 -5 -4 -4 -------- Run | Yrd Mat Sub Rec Scr Fac Fac Upp Upp War Pro Fac Total Allies 11 | . . . 11 . . . . . . . . Largest Group 11 | . . . 11 11 11 . . . . . . Highest-Rated Group 174 | . . . 174 174 174 . . . . . . Highest-Rated Ally 34 | . . . 34 34 34 . . . . . . Total Orders . | . . . . . . . . . . . . Ally Attacks 5 | . . . 2 . 3 . . . . . . Total Damage 578 | . . . 88 . 490 . . . . . . Kills 7 | . . . 1 . 6 . . . . . . Allies Corrupted . | . . . . . . . . . . . . Allies Melted . | . . . . . . . . . . . . Intel | -11 -10 -10 -9 -9 -6 -5 -5 -5 -5 -4 -4 ------- Run | Yrd Mat Sub Rec Scr Fac Fac Upp Upp War Pro Fac Robot Analysis Total . | . . . . . . . . . . . . Derelict Logs Recovered 4 | . . 1 . . . . 2 1 . . . Drone Launches . | . . . . . . . . . . . . Drone Recoveries . | . . . . . . . . . . . . Decoded 0b10 Intel 28 | . . . . . . 22 . . . . 6 Garrisons 2 | . . . . . . 2 . . . . . Patrols 4 | . . . . . . 2 . . . . 2 Investigations 2 | . . . . . . 2 . . . . . Guards 20 | . . . . . . 16 . . . . 4 Exploration | -11 -10 -10 -9 -9 -6 -5 -5 -5 -5 -4 -4 ------------- Run | Yrd Mat Sub Rec Scr Fac Fac Upp Upp War Pro Fac Turns Passed 15654 | 136 670 1692 800 2638 3046 1353 847 1399 1211 518 1344 Spaces Moved 10010 | 63 281 1183 655 2316 1938 720 405 657 637 348 807 Core 125 | 3 . . . . . . . . . . 122 Treads 451 | 56 281 114 . . . . . . . . . Legs 4926 | . . 214 . . 1260 720 405 657 637 348 685 Wheels 4508 | 4 . 855 655 2316 678 . . . . . . Hover . | . . . . . . . . . . . . Flight . | . . . . . . . . . . . . Fastest Speed 50 | 50 160 105 105 97 96 120 120 190 112 110 50 Average Speed 127 | 150 181 128 105 105 110 136 189 190 182 116 102 Slowest Speed 240 | 160 240 190 105 115 200 190 190 190 190 187 190 Overloaded Moves . | . . . . . . . . . . . . Propulsion Burnouts . | . . . . . . . . . . . . Robots Hopped . | . . . . . . . . . . . . Cave-ins Triggered 4 | . . . . . 1 . . . . 1 2 Exploration Rate (%) 52 | 7 53 65 89 90 43 20 53 66 73 51 22 Regions Visited 11 Branch Regions 7 Pre-discovered Areas 1 | . . 1 . . . . . . . . . Known Exits Taken 6 | . . . . . 1 1 1 1 1 1 . Unknown Exits Taken 5 | 1 1 1 1 1 . . . . . . . Scrap Searched 18 | . . 8 . 4 . . 3 2 . 1 . Spaces Dug 140 | . . . . . 14 48 6 10 . 24 38 Terrain Destroyed 754 | . . 56 . . 139 79 33 81 2 58 306 Melee 61 | . . . . . 5 18 . . . . 38 Projectile 214 | . . . . . 52 31 33 52 2 16 28 AOE 479 | . . 56 . . 82 30 . 29 . 42 240 Terrain Rammed . | . . . . . . . . . . . . Walls Destroyed . | . . . . . . . . . . . . Machines Disabled . | . . . . . . . . . . . . Actions | -11 -10 -10 -9 -9 -6 -5 -5 -5 -5 -4 -4 --------- Run | Yrd Mat Sub Rec Scr Fac Fac Upp Upp War Pro Fac Total 12037 | 86 348 1313 756 2525 2659 954 436 721 675 410 1154 Wait 936 | . 10 27 10 183 401 102 5 12 1 18 167 Move 9998 | 62 280 1182 654 2315 1937 719 404 656 636 347 806 Hop . | . . . . . . . . . . . . Pick Up 145 | 5 4 15 2 18 46 14 . 4 7 6 24 Fast Attach 51 | 8 1 5 . 1 18 1 1 . 4 1 11 Attach 69 | . . 4 . 1 23 5 . 4 3 6 23 Detach 17 | 1 1 2 . 1 8 . . . 2 1 1 Swap 105 | 1 5 10 . . 38 24 3 3 4 7 10 Drop 121 | 1 1 29 2 6 47 13 2 1 10 2 7 Fire 420 | 8 46 39 6 . 118 52 21 41 8 22 59 Melee 85 | . . . . . 22 19 . . . . 44 Ram . | . . . . . . . . . . . . Kick 2 | . . . . . 1 . . . . . 1 Crush . | . . . . . . . . . . . . Escape Stasis 6 | . . . . . . 5 . . . . 1 Rewire 82 | . . . 82 . . . . . . . . Trap . | . . . . . . . . . . . . Miscellaneous . | . . . . . . . . . . . . Route ------- -11/Scrapyard -10/Materials (discovered 3 exits: [*Mat] / [*Min] / *Sub) -10/Subcaves (discovered 2 exits: [*Mat] / *Rec) -9/Recycling (discovered 2 exits: [*Fac] / *Scr) -9/Scraptown (discovered 2 exits: *Fac x2) -6/Factory (discovered 4 exits: *Fac x4) -5/Factory (discovered 5 exits: *Fac x4 / *Upp) -5/Upper Caves -5/Upper Caves -5/Warlord -4/Proximity Caves -4/Factory (discovered 5 exits: Res x4 / Upp) History --------- Turn | Location | Event 10 | -11/Scrapyard | Discovered new exit (range 15) 137 | -11/Scrapyard | Entered Materials 329 | -10/Materials | Build established: Mutant 406 | -10/Materials | Discovered new exit (range 16) 598 | -10/Materials | Discovered new exit (range 3) 800 | -10/Materials | Discovered new exit (range 3) 807 | -10/Materials | Entered Subcaves 811 | -10/Subcaves | Learned Materials security intel 967 | -10/Subcaves | Ambushed by Subdwellers from Twisted Machinery 1087 | -10/Subcaves | Lost 4 parts (1p2n1w) 1829 | -10/Subcaves | Core integrity fell below 50% 1840 | -10/Subcaves | Discovered new exit (range 15) 1870 | -10/Subcaves | Shifting Twisted Machinery released Hvy. Riot Gun 1870 | -10/Subcaves | Shifting Twisted Machinery released Mak. Shrapnel Gun 1872 | -10/Subcaves | Shifting Twisted Machinery released Flamer 1905 | -10/Subcaves | Shifting Twisted Machinery released Battle Rifle 1915 | -10/Subcaves | Discovered new exit (range 4) 2101 | -10/Subcaves | Learned location of Zion (-7) 2101 | -10/Subcaves | Met a Zionite searching for "candidates" 2183 | -10/Subcaves | Visited Clippyterm 2186 | -10/Subcaves | Learned Research security intel 2186 | -10/Subcaves | Learned Factory emergency access door positions 2347 | -10/Subcaves | Found SUBCON Basin 2499 | -10/Subcaves | Entered Recycling 2834 | -9/Recycling | Discovered new exit (range 15) 2968 | -9/Recycling | Build established: Commander-Mutant 3219 | -9/Recycling | Scanned before Scraplab entrance 3236 | -9/Recycling | Entered Scraplab 3258 | -9/Recycling | Discovered new exit (range 3) 3299 | -9/Recycling | Entered Scraptown 3299 | -9/Scraptown | Accompanied by 11 allies 3550 | -9/Scraptown | Visited UFD Registry 3552 | -9/Scraptown | Registered with UFD as "Softsys" 3787 | -9/Scraptown | Discovered new exit (range 11) 3904 | -9/Scraptown | Visited Spacefarers 3937 | -9/Scraptown | Visited Assassins FH 3980 | -9/Scraptown | Visited Cave Peace 4028 | -9/Scraptown | Visited Red Mages 4082 | -9/Scraptown | Visited SPCMW 4133 | -9/Scraptown | Visited Symbiants 4159 | -9/Scraptown | Visited The Evicted 4292 | -9/Scraptown | Visited Infowarlord's Domain 4306 | -9/Scraptown | Found Spectral Analyzer 4341 | -9/Scraptown | Visited Junk Repository 4699 | -9/Scraptown | Visited Science Guys 4765 | -9/Scraptown | Visited Scrapoid Pod Storage 4833 | -9/Scraptown | Visited Abandonware Association 4857 | -9/Scraptown | Learned abandonware demo "REVENGE.EXE" 4897 | -9/Scraptown | Visited Junk Repository 4943 | -9/Scraptown | Visited Scrap Suit Storage 4954 | -9/Scraptown | Found Scrap Suit 4986 | -9/Scraptown | Visited Modified Component R&D 5168 | -9/Scraptown | Discovered new exit (range 3) 5937 | -9/Scraptown | Entered Factory 5937 | -6/Factory | Accompanied by 11 allies 5937 | -6/Factory | Evolved 8 slots: Propulsion x2, Utility x6 6110 | -6/Factory | Discovered new exit (range 15) 6146 | -6/Factory | Identified exit to Factory 6248 | -6/Factory | Discovered exit to Factory (range 15) 6328 | -6/Factory | Lost 5 allies 6362 | -6/Factory | Lost 4 allies 6602 | -6/Factory | Lost 3 parts (1p1n1u) 6622 | -6/Factory | Build established: Hacker-Scrapper 6770 | -6/Factory | Tech Extrapolator generated special schematic: Machine Rigger 6926 | -6/Factory | Discovered exit to Factory (range 5) 7017 | -6/Factory | Fabricated Imp. Heavy Machine Gun (x1) 7093 | -6/Factory | Build established: Scavenger-Scrapper 7210 | -6/Factory | Fabricated 0b10 Decoder Chip [Skirmisher] (x2) 7376 | -6/Factory | Cargo convoy interrupted 8082 | -6/Factory | Fabricated Titanium Leg (x2) 8238 | -6/Factory | Found Prototype Processor 8238 | -6/Factory | Identified Exp. Melee Analysis Suite 8257 | -6/Factory | Found Exp. Signal Interpreter 8387 | -6/Factory | First assault squad dispatched 8616 | -6/Factory | Crushed by falling debris 8853 | -6/Factory | Discovered exit to Factory (range 14) 8983 | -6/Factory | Entered another Factory area 8983 | -5/Factory | Evolved 2 slots: Utility x1, Weapon x1 9283 | -5/Factory | First assault squad dispatched 9857 | -5/Factory | Repaired Lyr. Medium Armor Plating 9988 | -5/Factory | Discovered new exit (range 12) 10007 | -5/Factory | Identified exit to Factory 10325 | -5/Factory | Discovered new exit (range 6) 10334 | -5/Factory | Identified exit to Upper Caves 10336 | -5/Factory | Entered Upper Caves 10403 | -5/Upper Caves | Build established: Skirmisher 10601 | -5/Upper Caves | Learned 12 Factory zone layouts 10684 | -5/Upper Caves | Learned Factory stockpile data 10723 | -5/Upper Caves | Encountered a Warlord checkpoint 10954 | -5/Upper Caves | Attracted the attention of an 0b10 checkpoint 11084 | -5/Upper Caves | Discovered new exit (range 5) 11109 | -5/Upper Caves | Identified exit to Upper Caves 11183 | -5/Upper Caves | Entered another Upper Caves area 11185 | -5/Upper Caves | Attracted the attention of an 0b10 checkpoint 11351 | -5/Upper Caves | Learned Factory terminal intel 12544 | -5/Upper Caves | Discovered new exit (range 9) 12558 | -5/Upper Caves | Identified exit to Warlord 12582 | -5/Upper Caves | Entered Warlord 12913 | -5/Warlord | Tech Extrapolator generated special schematic: Energy Deflector 12943 | -5/Warlord | Found Prototype Special Weapon 12943 | -5/Warlord | Identified RU-N14's Throwing Claymores v3 12949 | -5/Warlord | Found RU-N14's Throwing Claymores v3 13029 | -5/Warlord | Visited the Vortex Lab 13033 | -5/Warlord | Warlord's base attacked by MAIN.C 13066 | -5/Warlord | Found Prototype Energy Gun 13066 | -5/Warlord | Identified Vortex Rail 13070 | -5/Warlord | Found Vortex Rail 13383 | -5/Warlord | Warlord forces counterattacked 13449 | -5/Warlord | Rebuked by Warlord 13686 | -5/Warlord | Spotted Striker 13688 | -5/Warlord | Lost 4 allies 13708 | -5/Warlord | Warlord base infiltrated, sounded retreat 13731 | -5/Warlord | Lost 3 parts (1p2u) 13756 | -5/Warlord | Spotted Executioner 13757 | -5/Warlord | Destroyed Executioner 13782 | -5/Warlord | Discovered new exit (range 12) 13792 | -5/Warlord | Identified exit to Proximity Caves 13793 | -5/Warlord | Entered Proximity Caves 14112 | -4/Proximity Caves | Spotted B-86 Titan 14126 | -4/Proximity Caves | Crushed by falling debris 14126 | -4/Proximity Caves | System corruption reached 10% 14140 | -4/Proximity Caves | Destroyed B-86 Titan 14157 | -4/Proximity Caves | Lost 4 parts (3u1w) 14296 | -4/Proximity Caves | Discovered exit to Factory (range 12) 14311 | -4/Proximity Caves | Entered Factory 14311 | -4/Factory | Evolved 2 slots: Propulsion x1, Utility x1 14312 | -4/Factory | Identified exit to Upper Caves 14314 | -4/Factory | Loaded intel: 26 terminal locations 14329 | -4/Factory | Lost 4 parts (2n2w) 14470 | -4/Factory | Repaired Centrium Light Armor Plating 14867 | -4/Factory | Lost 3 parts (1n1u1w) 14869 | -4/Factory | Crushed by falling debris 14869 | -4/Factory | System corruption reached 10% 14931 | -4/Factory | Crushed by falling debris 14973 | -4/Factory | Lost 5 parts (1n3u1w) 14997 | -4/Factory | Repaired Arm. Leg 15045 | -4/Factory | System corruption reached 30% 15138 | -4/Factory | Build established: Hacker-Mutant 15201 | -4/Factory | Lost 5 parts (3n2u) 15214 | -4/Factory | Destroyed 7 combat bots 15396 | -4/Factory | Lost 6 parts (1n2u3w) 15460 | -4/Factory | Lost 6 parts (3n2u1w) 15523 | -4/Factory | Lost 3 parts (1p2n) 15527 | -4/Factory | Core integrity fell below 50% 15586 | -4/Factory | Identified exit to Research 15594 | -4/Factory | Released all parts (5) 15614 | -4/Factory | Core integrity fell below 20% 15655 | -4/Factory | Destroyed by S-27 Virus with Autogun Last Messages --------------- 15593_ Assembly Bed disabled. 15593_ Flexi-carbon Leg destroyed. 15594_ Released Adv. Hacking Suite. 15594_ Released Imp. Hacking Suite. 15594_ Released Lrg. Storage Unit. 15594_ Released Hacking Suite. 15594_ Released Kinetic Spear. 15597_ Slug penetrates Wall. 15598_ System corrupted: Matter fused (-10). 15599_ Slug penetrates Wall. 15606_ Terminal disabled. 15606_ K-01 Serf destroyed. 15606_ K-01 Serf collects debris. 15609_ U-05 Engineer lays Concrete. 15618_ Construction Platform disabled. 15642_ System corrupted: IFF burst signal emitted. 15646_ Slug penetrates Wall. 15646_ Penetrated by Slug. 15646_ Slug penetrates Wall. 15655_ Acquired 13 matter. Map ----- +----------------------------------------------------+ | ##??# # ?????????????????????????????? | | #???# # ?????????????????????????????? | | #???# # ?????????????????????????????? | | #???# # ?????????????????????????????? | | ##### ##?????????????????????????????? | | + """ #??????????????????????????????? | | ##### """ ##?????????????????????????????? | | #???# """ + ?????????????????????????????? | | #???# ##?????????????????????????????? | | +##### #??????????????????????????????? | | ## #???? ?????????????????????????? | | ] ###############??# ?????????????????????????? | | # #???????#ss ????????????????????????? | | # """""" #######?# s ????????????????????????? | | # """""" # #?# ????????????????????????? | | # """""" # "" #?# ss????????????????????????? | | # """""" + T ? ????????????????????????? | | # # #?#k ??????????###???????????? | | # # #?# ????????? ??????????? | | # ###+##### ####+### ???????????? | | # # ## u ?????????????? | | ########## ## ???????????????? | | #####????????# ## ?????